Cogmind - Beta 13 @@@ ROGUE MODE // 2024.04.04 @ 18:42:42 Player: meetlok Result: Destroyed by H-61 Shepherd with Heavy Assault Cannon Performance ------------- Evolutions (2) 1000 Regions Visited (4) 800 Robots Destroyed (6) 30 Value Destroyed (124) 124 Prototype IDs (0) 0 Alien Tech Used (0) 0 Bonus (200) 200 TOTAL SCORE: 2154 Bonus ------- Pacifist 200 Cogmind --------- Core Integrity 0/550 Matter 161/300 Energy 99/100 System Corruption 0% Temperature Cool (0) Movement Core (100) Ox1 Location -8/Materials Parts ------- > --- POWER (1) -------- (None) > --- PROPULSION (3) --- (None) > --- UTILITY (5) ------ Small Storage Unit Visual Processing Unit Signal Interpreter > --- WEAPON (2) ------- (None) > --- INVENTORY (8) ---- Compact Battery (200) Weight Redist. System Terrain Scan Processor EM Shotgun Field Laser Shotgun Rocket Launcher Great Maul Peak State ------------ > --- POWER ------------ Light Ion Engine > --- PROPULSION ------- Flight Unit VTOL Module Cesium-ion Thruster > --- UTILITY ---------- Small Storage Unit Visual Processing Unit Signal Interpreter ECM Suite System Shield > --- WEAPON ----------- Rocket Launcher > --- INVENTORY -------- Compact Battery Weight Redist. System EM Shotgun Field Laser Light Assault Rifle Shotgun Great Maul [Rating: 18] Favorites ----------- Power Light Ion Engine Engine Light Ion Engine Propulsion Flight Unit Wheel Wheel Flight Unit Flight Unit Utility Small Storage Unit Device ECM Suite Storage Small Storage Unit Processor Visual Processing Unit Hackware System Shield Weapon Light Assault Rifle Energy Gun EM Pulse Gun Energy Cannon Beam Cannon Ballistic Gun Light Assault Rifle Launcher Rocket Launcher Impact Weapon Hammer Build | -11 -10 -9 -9 -8 ------- Run | Yrd Mat Mat Min Mat Slots Evolved 4 | . . 2 . 2 Power . | . . . . . Propulsion 1 | . . 1 . . Utility 3 | . . 1 . 2 Weapon . | . . . . . Parts Attached 42 | 3 4 16 4 15 Power 4 | . 1 1 1 1 Engine 4 | . 1 1 1 1 Core . | . . . . . Reactor . | . . . . . Propulsion 9 | 2 . 5 1 1 Treads . | . . . . . Leg . | . . . . . Wheel 2 | 2 . . . . Hover . | . . . . . Flight 7 | . . 5 1 1 Utility 9 | 1 1 3 . 4 Device 4 | . 1 2 . 1 Storage 2 | 1 . . . 1 Processor 2 | . . 1 . 1 Hackware 1 | . . . . 1 Protection . | . . . . . Artifact . | . . . . . Weapon 20 | . 2 7 2 9 Energy Gun 2 | . 1 . . 1 Energy Cannon 4 | . 1 3 . . Ballistic Gun 8 | . . 3 1 4 Ballistic Cannon . | . . . . . Launcher 5 | . . . 1 4 Special Weapon . | . . . . . Impact Weapon 1 | . . 1 . . Slashing Weapon . | . . . . . Piercing Weapon . | . . . . . Special Melee Weapon . | . . . . . Unidentified Prototypes . | . . . . . Parts Lost 13 | . . 5 . 8 Power 3 | . . 1 . 2 Propulsion 6 | . . 3 . 3 Utility 2 | . . . . 2 Weapon 2 | . . 1 . 1 Highest Loss Streak 7 | . . 4 . 7 To Critical Strikes . | . . . . . Average Slot Usage (%) 86 | . 92 83 88 85 Engine 9 | . 12 8 11 7 Wheel 4 | . 28 . . . Flight 23 | . . 30 33 25 Device 11 | . 13 11 11 10 Storage 10 | . 14 11 11 9 Processor 11 | . . 10 11 17 Hackware 2 | . . . . 7 Energy Gun 2 | . 12 . . . Energy Cannon 2 | . 12 3 . . Ballistic Gun 6 | . . 7 9 7 Naked Turns . | . . . . . Heaviest Build 15 | 5 15 14 14 13 Greatest Support 20 | 20 20 18 12 13 Greatest Overweight (x) 2 | . . 1 1 2 Average Overweight (x) . | . . . . . Largest Inventory Capacity 8 | 8 8 8 8 8 Average Capacity 7 | 7 8 8 8 8 Most Carried 8 | 7 8 8 8 8 Average Carried 6 | 4 6 6 6 7 Final Capacity 8 | 8 8 8 8 8 Final Carried 8 | 7 8 8 8 8 Class Distribution -------------------- 67% | Sprinter 32% | Mutant Dominant Class ---------------- Mutant | -10/Materials Sprinter | -9/Materials Sprinter | -9/Mines Sprinter | -8/Materials Resources | -11 -10 -9 -9 -8 ----------- Run | Yrd Mat Mat Min Mat Matter Collected 562 | 213 . 317 . 32 Remotely . | . . . . . Salvage Created 168 | . . 147 . 21 Parts 19 | . . 15 . 4 Haulers Intercepted . | . . . . . Recyclers Shooed . | . . . . . Parts Field Recycled . | . . . . . Retrieved Matter . | . . . . . Parts Self-Destructed . | . . . . . Prevented . | . . . . . Kills | -11 -10 -9 -9 -8 ------- Run | Yrd Mat Mat Min Mat Combat Hostiles Destroyed 5 | . . 5 . . Guns 2 | . . 2 . . Cannons 3 | . . 3 . . Classes Destroyed 4 | . . 3 . 1 Builder 1 | . . . . 1 Swarmer 3 | . . 3 . . Grunt 1 | . . 1 . . Sentry 1 | . . 1 . . Best Kill Streak 5 | . . 5 . 1 Combat Bots Only 5 | . . 5 . . Max Kills in Single Turn 1 | . . 1 . 1 Gunslinging . | . . . . . Exploded . | . . . . . Melee . | . . . . . Uniques/NPCs Destroyed . | . . . . . Combat | -11 -10 -9 -9 -8 -------- Run | Yrd Mat Mat Min Mat Hostile Shots Fired 127 | . . 63 6 58 Missed 41 | . . 17 2 22 Damage Taken 1475 | . . 500 83 892 Core 701 | . . 120 21 560 Absorbed by Shields . | . . . . . Core Remaining (%) 88 | 100 100 . 64 . Volleys Fired 32 | . . 15 4 13 Largest 2 | . . 2 1 1 Hottest 116 | . . 116 33 33 Shots Fired 35 | . . 18 4 13 Gun 14 | . . 5 . 9 Cannon 13 | . . 13 . . Launcher 8 | . . . 4 4 Special . | . . . . . Kinetic 14 | . . 5 . 9 Thermal 10 | . . 10 . . Explosive 8 | . . . 4 4 Electromagnetic 3 | . . 3 . . Robot Hit Streak 4 | . . 4 . 3 Robot Miss Streak 5 | . . 2 . 5 Penetration Max . | . . . . . Secondary Targets . | . . . . . Shots Hit Robots 20 | . . 14 . 6 Core Hits 9 | . . 7 . 2 Critical Kills . | . . . . . Critical Parts Destroyed . | . . . . . Critical Strikes . | . . . . . Melee Attacks . | . . . . . Impact . | . . . . . Slashing . | . . . . . Piercing . | . . . . . Sneak Attacks . | . . . . . Combat Hostiles . | . . . . . Follow-up Attacks . | . . . . . Damage Inflicted 357 | . . 236 . 121 Guns 150 | . . 77 . 73 Cannons 159 | . . 159 . . Explosions 48 | . . . . 48 Melee . | . . . . . Ramming . | . . . . . Kinetic 150 | . . 77 . 73 Thermal 140 | . . 140 . . Explosive 48 | . . . . 48 Electromagnetic 19 | . . 19 . . Impact . | . . . . . Slashing . | . . . . . Piercing . | . . . . . Highest Corruption . | . . . . . Average Corruption . | . . . . . Corruption Purged . | . . . . . Corruption Blocked . | . . . . . Overload Shots . | . . . . . Overflow Damage 8 | . . . . 8 Projectiles . | . . . . . Explosions 8 | . . . . 8 Melee . | . . . . . Knockbacks . | . . . . . Impact . | . . . . . Kinetic . | . . . . . Secondary . | . . . . . Self-Inflicted Damage 144 | . . . 44 100 Shots 6 | . . . 2 4 Rammed . | . . . . . Targets Rammed . | . . . . . Kicked . | . . . . . Crushed . | . . . . . Highest Temperature 297 | . . 297 9 4 Average Temperature 161 | . . 172 9 3 Received Heat Transfer 290 | . . 153 20 117 Effects 3 | . . 3 . . Energy Bleed 1 | . . 1 . . Interference 2 | . . 2 . . Siege Activations . | . . . . . Robots Corrupted . | . . . . . Combat Hostiles . | . . . . . Parts Fried . | . . . . . Impact Corruptions . | . . . . . Robots Melted . | . . . . . Combat Hostiles . | . . . . . Parts Melted . | . . . . . Heat Transferred 296 | . . 296 . . Parts Sabotaged . | . . . . . Parts Stolen . | . . . . . Parts Stripped . | . . . . . Power Chain Reactions . | . . . . . Alert | -11 -10 -9 -9 -8 ------- Run | Yrd Mat Mat Min Mat Peak Influence 423 | . 5 216 141 423 Initial 79 | . . 1 79 54 Average 105 | . 4 104 103 181 Maximum Alert Level 2 | . . 1 . 2 Low Security (%) 86 | 100 100 89 100 65 Level 1 11 | . . 10 . 28 Level 2 1 | . . . . 5 Level 3 . | . . . . . Level 4 . | . . . . . Level 5 . | . . . . . High Security . | . . . . . Max Security . | . . . . . Squads Dispatched 7 | . 1 2 . 4 Investigation 3 | . . 1 . 2 Extermination . | . . . . . Reinforcement 4 | . 1 1 . 2 Assault . | . . . . . Garrison . | . . . . . Intercept . | . . . . . Searches Triggered . | . . . . . Construction Impeded 1 | . . . . 1 Haulers Reinforced . | . . . . . Active Scanning Responses . | . . . . . Cargo Convoy Interrupts . | . . . . . Stealth | -11 -10 -9 -9 -8 --------- Run | Yrd Mat Mat Min Mat Distress Signals 3 | . . 1 . 2 Communications Jammed . | . . . . . Distress Signals . | . . . . . Times Spotted 63 | . 2 12 18 31 Peak Tracking Total 17 | . 2 6 11 17 Tactical Retreats 11 | . 1 2 3 5 Traps | -11 -10 -9 -9 -8 ------- Run | Yrd Mat Mat Min Mat Traps Triggered . | . . . . . Indirectly . | . . . . . Trap Hack Attempts . | . . . . . Triggered . | . . . . . Disarmed . | . . . . . Reprogrammed . | . . . . . Reused . | . . . . . Traps Extracted . | . . . . . Installed . | . . . . . Triggered . | . . . . . Machines | -11 -10 -9 -9 -8 ---------- Run | Yrd Mat Mat Min Mat Machines Disabled 1 | . . . . 1 Max in Single Turn 1 | . . . . 1 Machines Repaired . | . . . . . Machines Dismantled . | . . . . . Machines Sabotaged . | . . . . . Overloaded Fab Kills . | . . . . . Hacking | -11 -10 -9 -9 -8 --------- Run | Yrd Mat Mat Min Mat Machines Accessed 9 | . 2 2 1 4 Terminals 8 | . 1 2 1 4 Fabricators . | . . . . . Repair Stations . | . . . . . Recycling Units 1 | . 1 . . . Scanalyzers . | . . . . . Garrison Access . | . . . . . Total Hacks 37 | . 5 6 2 24 Successful 14 | . 3 2 1 8 Failed 23 | . 2 4 1 16 Catastrophic 5 | . . 1 . 4 Database Lockouts . | . . . . . Manual . | . . . . . Terminals 35 | . 3 6 2 24 Fabricators . | . . . . . Repair Stations . | . . . . . Recycling Units 2 | . 2 . . . Scanalyzers . | . . . . . Garrison Access . | . . . . . Terminal Hacks 12 | . 1 2 1 8 Record 1 | . . . . 1 Emergency Access Points 1 | . . . . 1 Alert Level 2 | . . 1 . 1 Patrol Status 1 | . . 1 . . Investigation Status 1 | . . . . 1 Reinforcement Status 1 | . . . . 1 Zone Layout 5 | . 1 . 1 3 Fabricator Hacks . | . . . . . Repair Station Hacks . | . . . . . Recycling Unit Hacks 2 | . 2 . . . Report Inventory 1 | . 1 . . . Retrieve Components 1 | . 1 . . . Scanalyzer . | . . . . . Garrison Access Hacks . | . . . . . Unauthorized Hacks . | . . . . . Terminals . | . . . . . Fabricators . | . . . . . Repair Stations . | . . . . . Recycling Units . | . . . . . Scanalyzers . | . . . . . Garrison Access . | . . . . . Data Cores Recovered . | . . . . . Used . | . . . . . Hacking Detections 7 | . 1 1 1 4 Full Trace Events 4 | . . 1 . 3 Feedback Events . | . . . . . Feedback Blocked . | . . . . . Robot Schematics Acquired . | . . . . . Robots Built . | . . . . . Authchips . | . . . . . Time . | . . . . . Total Robot Build Rating . | . . . . . Part Schematics Acquired . | . . . . . Parts Built . | . . . . . Authchips . | . . . . . Time . | . . . . . Total Part Build Rating . | . . . . . Parts Repaired . | . . . . . Time . | . . . . . Parts Recycled . | . . . . . Recycled Matter . | . . . . . Retrieved Matter . | . . . . . Retrieved Components 3 | . 3 . . . Parts Scanalyzed . | . . . . . Part Schematics Acquired . | . . . . . Parts Damaged . | . . . . . Bothacking | -11 -10 -9 -9 -8 ------------ Run | Yrd Mat Mat Min Mat Used RIF Installer . | . . . . . Robots Hacked . | . . . . . Non-combat . | . . . . . Combat . | . . . . . Robot Hacks Applied . | . . . . . Relay Couplers Released . | . . . . . Fabnet Peak Effective % . | . . . . . Robots Rewired . | . . . . . Allies Hacked . | . . . . . Hacks Repelled . | . . . . . Allies | -11 -10 -9 -9 -8 -------- Run | Yrd Mat Mat Min Mat Total Allies . | . . . . . Largest Group . | . . . . . Highest-Rated Group . | . . . . . Highest-Rated Ally . | . . . . . Total Orders . | . . . . . Ally Attacks . | . . . . . Total Damage . | . . . . . Kills . | . . . . . Allies Corrupted . | . . . . . Allies Melted . | . . . . . Intel | -11 -10 -9 -9 -8 ------- Run | Yrd Mat Mat Min Mat Robot Analysis Total . | . . . . . Derelict Logs Recovered 2 | . . . 2 . Drone Launches . | . . . . . Drone Recoveries . | . . . . . Exploration | -11 -10 -9 -9 -8 ------------- Run | Yrd Mat Mat Min Mat Turns Passed 854 | 51 143 201 193 266 Spaces Moved 1550 | 50 145 357 410 588 Core 25 | 11 . . . 14 Treads . | . . . . . Legs . | . . . . . Wheels 184 | 39 145 . . . Hover . | . . . . . Flight 1341 | . . 357 410 574 Fastest Speed 29 | 50 80 29 32 30 Average Speed 38 | 73 80 32 33 33 Slowest Speed 150 | 80 80 115 112 150 Overloaded Moves . | . . . . . Propulsion Burnouts . | . . . . . Robots Hopped 12 | . . . 7 5 Cave-ins Triggered . | . . . . . Exploration Rate (%) 35 | 3 27 29 88 31 Regions Visited 4 Branch Regions 1 Pre-discovered Areas . | . . . . . Known Exits Taken 1 | . . . 1 . Unknown Exits Taken 3 | 1 1 1 . . Scrap Searched 1 | . . . 1 . Spaces Dug 96 | . . . 47 49 Terrain Destroyed 96 | . . . 47 49 Melee . | . . . . . Projectile . | . . . . . AOE 96 | . . . 47 49 Terrain Rammed . | . . . . . Walls Destroyed . | . . . . . Machines Disabled . | . . . . . Actions | -11 -10 -9 -9 -8 --------- Run | Yrd Mat Mat Min Mat Total 1756 | 64 173 427 453 639 Wait 91 | 2 12 21 41 15 Move 1523 | 49 144 356 395 579 Hop 11 | . . . 7 4 Pick Up 37 | 10 9 9 2 7 Fast Attach . | . . . . . Attach 24 | 3 4 11 2 4 Detach 6 | . . 5 . 1 Swap 18 | . . 5 2 11 Drop 14 | . 4 5 . 5 Fire 32 | . . 15 4 13 Melee . | . . . . . Ram . | . . . . . Kick . | . . . . . Crush . | . . . . . Escape Stasis . | . . . . . Rewire . | . . . . . Trap . | . . . . . Miscellaneous . | . . . . . Route ------- -11/Scrapyard -10/Materials (discovered 2 exits: *Mat / [*Min]) -9/Materials -9/Mines (discovered 2 exits: *Mat x2) -8/Materials (discovered 2 exits: [*Fac] / [*Sto]) History --------- Turn | Location | Event 26 | -11/Scrapyard | Discovered new exit (range 16) 52 | -11/Scrapyard | Entered Materials 160 | -10/Materials | Discovered new exit (range 16) 163 | -10/Materials | Discovered new exit (range 10) 195 | -10/Materials | Entered another Materials area 195 | -9/Materials | Evolved 2 slots: Propulsion x1, Utility x1 285 | -9/Materials | Lost 4 parts (1p2n1w) 316 | -9/Materials | Discovered new exit (range 4) 396 | -9/Materials | Entered Mines 410 | -9/Mines | Assembled infested the area 410 | -9/Mines | Identified exit to Materials 415 | -9/Mines | Assisted by a Guerilla fighting off Assembled 508 | -9/Mines | Received a Rocket Launcher from a helpful Derelict 519 | -9/Mines | Discovered exit to Materials (range 6) 546 | -9/Mines | Joined a pair of Derelicts in attacking an 0b10 outpost 589 | -9/Mines | Entered Materials 589 | -8/Materials | Evolved 2 slots: Utility x2 608 | -8/Materials | Discovered new exit (range 17) 614 | -8/Materials | Build established: Sprinter 840 | -8/Materials | Core integrity fell below 50% 849 | -8/Materials | Core integrity fell below 20% 851 | -8/Materials | Discovered new exit (range 18) 855 | -8/Materials | Destroyed by H-61 Shepherd with Heavy Assault Cannon Last Messages --------------- W-25 Informer sends out distress signal. K-01 Serf collects debris. Destroyed Wheel. Processing Tank disabled. U-05 Engineer builds a Wall. Flight Unit destroyed. Lgt. Ion Engine destroyed. VTOL Module destroyed. Cesium-ion Thruster destroyed. System Shield destroyed. Critical hit (Burn: +37). Lgt. Assault Rifle destroyed. Knocked back. Acquired 2 matter. U-05 Engineer builds a Wall. ECM Suite destroyed. Acquired 3 matter. EXIT=FOUND Knocked back. Penetrated by Slug. Map ----- +----------------------------------------------------+ | ????????????????# ## ## #????????????? | | ????????????????# ## ## #????????????? | | ????????????????+ ## ## ##########???? | | ????????????????# #####+### ## #???? | | ????????????????# #???# # # T #???? | | ????????????????# #???# # # #???? | | ????????????????# #???# # + #???? | | ????????????????? #???# ##= # #???? | | ????????????????? #???# ## # #???? | | ????????????????? #???# ### #########???? | | ????????????????? #???# ## %###?????????? | | ????????????????? #???# ## #?????????? | | ????????????????? ##??# ## #?????????? | | ???????????????# #### ## % ########??? | | ???????????????+ ### # ### #??? | | ???????????????# ######## g # #??? | | ??????????????????##??????# # " + #??? | | ??????????????????#######?#%# T # #??? | | ??????????????????# #?# # " !# #??? | | ??????????????????# ###g# ### ###??? | | ??????????????????#! !##;%######?# #????? | | ??????????????????# # ######## #????? | | ??????????????????#!!! #c c #????? | | ??????????????????#!!! + ##########????? | | ??????????????????#!! ; #?????????????? | | ??????????????????#######@ #?????????????? | | ???????????????????????# #????????????? | | ?????????????????????? H #????????????? | | ????????????????????? +????????????? | | ???????????????????? #????????????? | | ???????????????????##+## #????????????? | | ???????????????????????## ##????????????? | | ????????????????????????# #?????????????? | | ????????????????????????# ?????????????? | | ????????????????????????# ?????????????? | | ????????????????????????# ????????????? | | ????????????????????????? ????????????? | | ????????????????????????? ????????????? | | ????????????????????????? ???????????? | | ????????????????????????? < ###???????????? | | ????????????????????????? #?????????????? | | ?????????????????????????###??????????????? | | ??????????????????????????????????????????? | | ??????????????????????????????????????????? | | ??????????????????????????????????????????? | | ??????????????????????????????????????????? | | ??????????????????????????????????????????? | | | | | | | +----------------------------------------------------+ Best States ------------- Heat Dissipation 31 Energy Generation 10 Energy Capacity 125 Matter Stores 306 Matter Capacity 400 Sight Range 18 Terrain Scan Density 10 ECM Strength 1 Evasion (%) 64 Defensive Hacking 10 Item Schematics ----------------- None Robot Schematics ------------------ None Fabricated ------------ Nothing Alien Tech Used ----------------- None Achievements -------------- Slippery One Challenges ------------ None Game ------ Seed SeismicWeightRecalibrator Manual? 0 Play Time 01:03:20 Cumulative 19.3 hours Start 2024.04.04 @ 15:47:09 End 2024.04.04 @ 18:42:42 Sessions 1 Manual Loads 0 Difficulty Rogue Special Mode None Game No. 9 Rogue 9 Adventurer 0 Explorer 0 Win Type - Total 0 Types 0/0/0/0/0/0/0/0/0 Lore% 7 Gallery% 21 Achievement% 15 Wizard Run 0 Options --------- Layout 1 ASCII 0 Keyboard 0 Movement Numpad Keybinds 0 Fullscreen 1 Font 24/Smallcaps Map View 50x35 Zoom Use 0% Tactical HUD 0 Map Filters NONE Filters NONE Steam 1 RUN: 4b7da8c5-4c34-4a57-b27e-ee0e8b0c52fd